Workbook

Sheet Лист1
B1: IB | C1: 52 | D1: 400 | E1: ИИС | G1: Брокер | I1: Курс рубля | J1: Выводимая сумма в рублях , чтобы, оплатив НДФЛ, внести на ИИС 400к | K1: Выводимая сумма в долларах, чтобы, оплатив НДФЛ, внести на ИИС 400 к | M1: Плоти нолог | O1: ИИС | Q1: Льгота
D2: перевод 400 к рублей в долларах | J2: 52 к с вычета НДФЛ в долларах по курсу года вносимые на счёт брокера | M2: IB
B3: Сумма | C3: Дивы до и после налога | E3: 5.3333 | M3: Рублей на счету | N3: Рублей было | O3: Рублей на счету | P3: Рублей было
B4: 15.88 | C4: =B4*0.02 -> 0.3176 | E4: =E3*0.9915 -> 5.28796695 | F4: =E4*0.02 -> 0.105759339 | G4: 10.6666 | H4: =G4*0.02 -> 0.213332 | I4: 75 | J4: =D1/0.987 -> 405.2684904 | K4: =J4/I7 -> 5.050074646 | M4: Разница в рублях | N4: Налог | O4: Разница в рублях | P4: Налог
A5: 1 год | B5: =B4*0.08 -> 1.2704 | C5: =C4*0.85 -> 0.26996 | E5: =E4*0.08 -> 0.423037356 | F5: =F4*0.85 -> 0.08989543815 | G5: =G4*0.08 -> 0.853328 | H5: =H4*0.85 -> 0.1813322 | J5: =52/I7 -> 0.6479750779 | M5: Итог в рублях | O5: Итог в рублях | Q5: Итог в рублях
B6: =B4+B5+C5 -> 17.42036 | E6: =E4+E5+F5 -> 5.800899744 | G6: =G4+G5+H5 -> 11.7012602 | M6: Итог в долларах | O6: Итог а долларах | Q6: Итог в долларах
D7: =D1/I7 -> 4.984423676 | E7: =D7+E6 -> 10.78532342 | F7: =E7*0.02 -> 0.2157064684 | G7: =G6-K4+J5 -> 7.299160631 | H7: =G7*0.02 -> 0.1459832126 | I7: =I4*1.07 -> 80.25 | J7: =D1/0.987 -> 405.2684904 | K7: =J7/I10 -> 4.719695931 | M7: Разница в долларах | N7: Налог
A8: 2 год | B8: =B6*0.08 -> 1.3936288 | C8: =B6*0.02 -> 0.3484072 | E8: =E7*0.08 -> 0.8628258736 | F8: =F7*0.85 -> 0.1833504981 | G8: =G7*0.08 -> 0.5839328505 | H8: =H7*0.85 -> 0.1240857307 | J8: =C1/I10 -> 0.6055841849 | M8: Итог в долларах
B9: =B6+B8+C9-0.12 -> 18.99013492 | C9: =C8*0.85 -> 0.29614612 | E9: =E8+E7+F8 -> 11.83149979 | G9: =G7+G8+H8 -> 8.007179213 | M9: Итог в рублях
D10: =D1/I10 -> 4.658339884 | E10: =E9+D10 -> 16.48983968 | F10: =E10*0.02 -> 0.3297967935 | G10: =G9-K7+J8 -> 3.893067466 | H10: =G10*0.02 -> 0.07786134933 | I10: =I7*1.07 -> 85.8675 | J10: нет | K10: нет
A11: 3 год | B11: =B9*0.08 -> 1.519210794 | C11: =B9*0.02 -> 0.3798026984 | E11: =E10*0.08 -> 1.319187174 | F11: =F10*0.85 -> 0.2803272745 | G11: =G10*0.08 -> 0.3114453973 | H11: =H10*0.85 -> 0.06618214693 | J11: =C1/I13 -> 0.565966528
B12: =B9+B11+C12-0.12 -> 20.71217801 | C12: =C11*0.85 -> 0.3228322936 | E12: =E10+F10+E11 -> 18.13882364 | G12: =G10+G11+H11 -> 4.270695011 | M12: =B12*I13 -> 1902.998151 | N12: 1200 | O12: =(E12+G12+J11)*I13 -> 2110.946797 | P12: 1200
I13: =I10*1.07 -> 91.878225 | M13: =M12-N12 -> 702.9981512 | N13: =M13*0.13 -> 91.38975965 | O13: =O12-P12 -> 910.9467971 | P13: =O13*0.13 -> 118.4230836
A14: 4 год | B14: =B12*0.08 -> 1.656974241 | C14: =B12*0.02 -> 0.4142435601 | M14: =M12-N13 -> 1811.608392 | O14: =O12-P13 -> 1992.523713 | Q14: 1891.6057
B15: =B12+B14+C15-0.12 -> 22.60125927 | C15: =C14*0.85 -> 0.3521070261 | M15: =M14/I13 -> 19.71749445 | O15: =O14/I13 -> 21.68657169 | Q15: =Q14/I13 -> 20.58818289
I16: =I13*1.07 -> 98.30970075 | M16: =B12-16 -> 4.712178007 | N16: =M16*0.13 -> 0.6125831409
A17: 5 год | B17: 1.808100742 | C17: =B15*0.02 -> 0.4520251855 | M17: =B12-N16 -> 20.09959487
B18: =B15+B17+C18-0.12 -> 24.67358142 | C18: =C17*0.85 -> 0.3842214077 | M18: =M17*I13 -> 1846.7151
I19: =I16*1.07 -> 105.1913798
A20: 6 год | B20: 1.973886514 | C20: =B18*0.02 -> 0.4934716285
B21: =B18+B20+C21-0.12 -> 26.94691882 | C21: =C20*0.85 -> 0.4194508842
I22: =I19*1.07 -> 112.5547764
A23: 7 год | B23: 2.155753506 | C23: =B21*0.02 -> 0.5389383764
B24: =B21+B23+C24-0.12 -> 29.44076995 | C24: =C23*0.85 -> 0.45809762
I25: =I22*1.07 -> 120.4336107
A26: 8 год | B26: 2.355261596 | C26: =B24*0.02 -> 0.5888153989
B27: =B24+B26+C27-0.12 -> 32.17652463 | C27: =C26*0.85 -> 0.5004930891
I28: =I25*1.07 -> 128.8639635
A29: 9 год | B29: 2.574121971 | C29: =B27*0.02 -> 0.6435304926
B30: =B27+B29+C30-0.12 -> 35.17764752 | C30: =C29*0.85 -> 0.5470009187
I31: =I28*1.07 -> 137.8844409
A32: 10 год | B32: 2.814211802 | C32: =B30*0.02 -> 0.7035529504
B33: =B30+B32+C33-0.12 -> 38.46987933 | C33: =C32*0.85 -> 0.5980200079 | M33: =B33*I34 -> 5675.705651 | N33: 1200
I34: =I31*1.07 -> 147.5363518 | M34: =M33-N33 -> 4475.705651 | N34: =M34*0.13 -> 581.8417346
A35: 11 год | B35: 3.077590346 | C35: =B33*0.02 -> 0.7693975866 | M35: =M33-N34 -> 5093.863916
B36: =B33+B35+C36-0.12 -> 42.08145763 | C36: =C35*0.85 -> 0.6539879486 | M36: =M35/I34 -> 34.52616155
I37: =I34*1.07 -> 157.8638964 | M37: =B33-16 -> 22.46987933 | N37: =M37*0.13 -> 2.921084313
A38: 12 год | B38: 3.36651661 | C38: =B36*0.02 -> 0.8416291525 | M38: =B33-N37 -> 35.54879502
B39: =B36+B38+C39-0.12 -> 46.04335902 | C39: =C38*0.85 -> 0.7153847796 | M39: =M38*I34 -> 5244.739528
I40: =I37*1.07 -> 168.9143692
A41: 13 год | B41: 3.683468721 | C41: =B39*0.02 -> 0.9208671803
B42: =B39+B41+C42-0.12 -> 50.38956484 | C42: =C41*0.85 -> 0.7827371033
I43: =I40*1.07 -> 180.738375
A44: 14 год | B44: 4.031165187 | C44: =B42*0.02 -> 1.007791297
B45: =B42+B44+C45-0.12 -> 55.15735263 | C45: =C44*0.85 -> 0.8566226023
I46: =I43*1.07 -> 193.3900613
A47: 15 год | B47: 4.41258821 | C47: =B45*0.02 -> 1.103147053
B48: =B45+B47+C48-0.12 -> 60.38761584 | C48: =C47*0.85 -> 0.9376749947
I49: =I46*1.07 -> 206.9273656
A50: 16 год | B50: 4.831009267 | C50: =B48*0.02 -> 1.207752317
B51: =B48+B50+C51-0.12 -> 66.12521457 | C51: =C50*0.85 -> 1.026589469
I52: =I49*1.07 -> 221.4122811
A53: 17 год | B53: 5.290017166 | C53: =B51*0.02 -> 1.322504291
B54: =B51+B53+C54-0.12 -> 72.41936038 | C54: =C53*0.85 -> 1.124128648
I55: =I52*1.07 -> 236.9111408
A56: 18 год | B56: =B54*0.08 -> 5.793548831 | C56: =B54*0.02 -> 1.448387208
B57: =B54+B56+C57 -> 79.44403834 | C57: =C56*0.85 -> 1.231129127
I58: =I55*1.07 -> 253.4949207
A59: 19 год | B59: =B57*0.08 -> 6.355523067 | C59: =B57*0.02 -> 1.588880767
B60: =B57+B59+C60 -> 87.15011006 | C60: =C59*0.85 -> 1.350548652
I61: =I58*1.07 -> 271.2395651
A62: 20 год | B62: =B60*0.08 -> 6.972008805 | C62: =B60*0.02 -> 1.743002201
B63: =B60+B62+C63 -> 95.60367074 | C63: =C62*0.85 -> 1.481551871
I64: =I61*1.07 -> 290.2263347
A65: 21 год | B65: =B63*0.08 -> 7.648293659 | C65: =B63*0.02 -> 1.912073415
B66: =B63+B65+C66 -> 104.8772268 | C66: =C65*0.85 -> 1.625262403
I67: =I64*1.07 -> 310.5421781
A68: 22 год | B68: =B66*0.08 -> 8.390178144 | C68: =B66*0.02 -> 2.097544536
B69: =B66+B68+C69 -> 115.0503178 | C69: =C68*0.85 -> 1.782912856
I70: =I67*1.07 -> 332.2801306
A71: 23 год | B71: =B69*0.08 -> 9.204025424 | C71: =B69*0.02 -> 2.301006356
B72: =B69+B71+C72 -> 126.2101986 | C72: =C71*0.85 -> 1.955855403
I73: =I70*1.07 -> 355.5397397
A74: 24 год | B74: =B72*0.08 -> 10.09681589 | C74: =B72*0.02 -> 2.524203972
B75: =B72+B74+C75 -> 138.4525879 | C75: =C74*0.85 -> 2.145573377
I76: =I73*1.07 -> 380.4275215
A77: 25 год | B77: =B75*0.08 -> 11.07620703 | C77: =B75*0.02 -> 2.769051758
B78: =B75+B77+C78 -> 151.8824889 | C78: =C77*0.85 -> 2.353693994
I79: =I76*1.07 -> 407.057448
A80: 26 год | B80: =B78*0.08 -> 12.15059911 | C80: =B78*0.02 -> 3.037649778
B81: =B78+B80+C81 -> 166.6150903 | C81: =C80*0.85 -> 2.582002312
I82: =I79*1.07 -> 435.5514694
A83: 27 год | B83: 13.32920723 | C83: 3.332301807
B84: =B81+B83+C84 -> 182.7767541 | C84: =C83*0.85 -> 2.832456536
I85: =I82*1.07 -> 466.0400722
A86: 28 год | B86: 14.62214033 | C86: 3.655535082
B87: =B84+B86+C87 -> 200.5060993 | C87: =C86*0.85 -> 3.10720482
I88: =I85*1.07 -> 498.6628773
A89: 29 год | B89: =B87*0.08 -> 16.04048794 | C89: =B87*0.02 -> 4.010121985
B90: =B87+B89+C90 -> 219.9551909 | C90: =C89*0.85 -> 3.408603687
I91: =I88*1.07 -> 533.5692787
A92: 30 год | B92: 17.59641527 | C92: 4.399103818
B93: =B90+B92+C93 -> 241.2908444 | C93: =C92*0.85 -> 3.739238245 | M93: =B93*I94 -> 137757.5585 | N93: 1200
I94: =I91*1.07 -> 570.9191282 | M94: =M93-N93 -> 136557.5585 | N94: =M94*0.13 -> 17752.48261
A95: 31 год | B95: 19.30326755 | C95: 4.825816888 | M95: =M93-N94 -> 120005.0759
B96: =B93+B95+C96 -> 264.6960563 | C96: =C95*0.85 -> 4.101944355 | M96: =M95/I94 -> 210.1962782
I97: =I94*1.07 -> 610.8834672 | M97: =B93-16 -> 225.2908444 | N97: =M97*0.13 -> 29.28780977
A98: 32 год | B98: 21.1756845 | C98: 5.293921126 | M98: =B93-N97 -> 212.0030346
B99: =B96+B98+C99 -> 290.3715738 | C99: =C98*0.85 -> 4.499832957

Sheet Лист2

Sheet Лист3
